[Event "Early-Titled-Tuesday-Blitz-October-10-2023"]
[Site "Chess.com"]
[Date "2023.10.10"]
[Round "7"]
[White "nitpicker"]
[Black "Javylavilla"]
[Result "1-0"]
[WhiteElo "2270"]
[BlackElo "2377"]
[TimeControl "180+1"]
[EndTime "9:17:23 PDT"]
[Termination "nitpicker won by checkmate"]

1. d4 {[%clk 0:03:00.9]} 1... Nf6 {[%clk 0:02:59.3]} 2. c4 {[%clk 0:03:00.8]}
2... c5 {[%clk 0:02:58.6]} 3. d5 {[%clk 0:03:00.3]} 3... b5 {[%clk 0:02:58.5]}
4. cxb5 {[%clk 0:03:00.5]} 4... a6 {[%clk 0:02:58.8]} 5. e3 {[%clk 0:03:00.8]}
5... g6 {[%clk 0:02:58.2]} 6. Nc3 {[%clk 0:02:59.9]} 6... Bg7 {[%clk 0:02:58]}
7. Nf3 {[%clk 0:03:00]} 7... O-O {[%clk 0:02:57.6]} 8. a4 {[%clk 0:03:00.1]}
8... axb5 {[%clk 0:02:56.6]} 9. Bxb5 {[%clk 0:02:58.4]} 9... Na6 {[%clk
0:02:50.4]} 10. O-O {[%clk 0:02:42]} 10... e6 {[%clk 0:02:50]} 11. dxe6 {[%clk
0:02:36.9]} 11... fxe6 {[%clk 0:02:50.9]} 12. Qd6 {[%clk 0:02:35.4]} 12... Bb7
{[%clk 0:02:48.1]} 13. Ra3 {[%clk 0:02:19.7]} 13... Rf7 {[%clk 0:02:33.4]} 14.
Rd1 {[%clk 0:02:08.5]} 14... Ng4 {[%clk 0:02:20]} 15. Bxd7 {[%clk 0:01:39.8]}
15... Bxf3 {[%clk 0:02:18.4]} 16. gxf3 {[%clk 0:01:35.2]} 16... Be5 {[%clk
0:02:15.3]} 17. Qxe6 {[%clk 0:01:34.5]} 17... Bxh2+ {[%clk 0:01:46.9]} 18. Kg2
{[%clk 0:01:23.6]} 18... Nxf2 {[%clk 0:01:44.1]} 19. Kxf2 {[%clk 0:01:01.7]}
19... Qh4+ {[%clk 0:01:41.3]} 20. Ke2 {[%clk 0:01:02.2]} 20... Bg3 {[%clk
0:01:27.9]} 21. Qh3 {[%clk 0:00:54.1]} 21... Qc4+ {[%clk 0:01:25.1]} 22. Rd3
{[%clk 0:00:40.9]} 22... Nb4 {[%clk 0:01:24.8]} 23. Bb5 {[%clk 0:00:36.3]} 23...
Qh4 {[%clk 0:01:01.1]} 24. Qxh4 {[%clk 0:00:34.5]} 24... Bxh4 {[%clk 0:01:02]}
25. Bc4 {[%clk 0:00:34.2]} 25... Nxd3 {[%clk 0:01:00.9]} 26. Kxd3 {[%clk
0:00:33.7]} 26... Rd8+ {[%clk 0:01:01.4]} 27. Ke2 {[%clk 0:00:33.2]} 27... Kg7
{[%clk 0:01:01.8]} 28. Bxf7 {[%clk 0:00:32.6]} 28... Kxf7 {[%clk 0:01:02.7]} 29.
Ne4 {[%clk 0:00:30.7]} 29... Be7 {[%clk 0:01:02.2]} 30. Bd2 {[%clk 0:00:30]}
30... h5 {[%clk 0:01:01.5]} 31. Rc3 {[%clk 0:00:28.5]} 31... h4 {[%clk
0:01:00.9]} 32. Nxc5 {[%clk 0:00:27.7]} 32... h3 {[%clk 0:01:01.3]} 33. Ne4
{[%clk 0:00:25.1]} 33... h2 {[%clk 0:00:44.3]} 34. Nf2 {[%clk 0:00:25.2]} 34...
Bb4 {[%clk 0:00:41.2]} 35. Rd3 {[%clk 0:00:25.2]} 35... Rb8 {[%clk 0:00:36.5]}
36. Bxb4 {[%clk 0:00:24.3]} 36... Rxb4 {[%clk 0:00:37.1]} 37. b3 {[%clk
0:00:23.6]} 37... Rb7 {[%clk 0:00:36.1]} 38. Nh1 {[%clk 0:00:21.8]} 38... Rc7
{[%clk 0:00:35.8]} 39. Rd2 {[%clk 0:00:19.6]} 39... Rc1 {[%clk 0:00:35.4]} 40.
Rd1 {[%clk 0:00:18.4]} 40... Rc2+ {[%clk 0:00:35.6]} 41. Kf1 {[%clk 0:00:17.9]}
41... Kf6 {[%clk 0:00:36]} 42. Nf2 {[%clk 0:00:16.4]} 42... Kf5 {[%clk 0:00:36]}
43. Kg2 {[%clk 0:00:15.3]} 43... g5 {[%clk 0:00:35.7]} 44. Rh1 {[%clk
0:00:15.1]} 44... Rb2 {[%clk 0:00:33.5]} 45. Rxh2 {[%clk 0:00:15.3]} 45... Rxb3
{[%clk 0:00:34.2]} 46. Rh8 {[%clk 0:00:14.7]} 46... Rxe3 {[%clk 0:00:32.8]} 47.
Rb8 {[%clk 0:00:13.4]} 47... Ra3 {[%clk 0:00:32.4]} 48. Rb5+ {[%clk 0:00:12.8]}
48... Kg6 {[%clk 0:00:29.5]} 49. Nh3 {[%clk 0:00:12]} 49... Ra2+ {[%clk
0:00:29.1]} 50. Kg3 {[%clk 0:00:11.3]} 50... Rxa4 {[%clk 0:00:30]} 51. Rxg5+
{[%clk 0:00:10.4]} 51... Kf6 {[%clk 0:00:30.9]} 52. f4 {[%clk 0:00:10.7]} 52...
Ra3+ {[%clk 0:00:29.6]} 53. Kg4 {[%clk 0:00:11]} 53... Ra1 {[%clk 0:00:29.7]}
54. Nf2 {[%clk 0:00:10.5]} 54... Rg1+ {[%clk 0:00:29.4]} 55. Kh4 {[%clk
0:00:09]} 55... Rf1 {[%clk 0:00:28]} 56. Ng4+ {[%clk 0:00:08.6]} 56... Kf7
{[%clk 0:00:27.1]} 57. Rf5+ {[%clk 0:00:08.3]} 57... Kg6 {[%clk 0:00:25]} 58.
Rg5+ {[%clk 0:00:07.7]} 58... Kf7 {[%clk 0:00:24.8]} 59. f5 {[%clk 0:00:08]}
59... Rh1+ {[%clk 0:00:23.9]} 60. Kg3 {[%clk 0:00:08]} 60... Rg1+ {[%clk
0:00:24.1]} 61. Kf4 {[%clk 0:00:08.1]} 61... Rf1+ {[%clk 0:00:24]} 62. Ke4
{[%clk 0:00:08.3]} 62... Re1+ {[%clk 0:00:24]} 63. Ne3 {[%clk 0:00:08.5]} 63...
Ra1 {[%clk 0:00:21]} 64. Rh5 {[%clk 0:00:08.3]} 64... Ra4+ {[%clk 0:00:19.1]}
65. Ke5 {[%clk 0:00:08.7]} 65... Ra5+ {[%clk 0:00:19.3]} 66. Nd5 {[%clk
0:00:09]} 66... Ra1 {[%clk 0:00:14.5]} 67. Rh7+ {[%clk 0:00:08.1]} 67... Kg8
{[%clk 0:00:14.7]} 68. Rd7 {[%clk 0:00:06.5]} 68... Kf8 {[%clk 0:00:13.2]} 69.
f6 {[%clk 0:00:04.5]} 69... Re1+ {[%clk 0:00:13]} 70. Kd6 {[%clk 0:00:04.4]}
70... Rd1 {[%clk 0:00:12.3]} 71. Ke6 {[%clk 0:00:03.9]} 71... Re1+ {[%clk
0:00:12.1]} 72. Kf5 {[%clk 0:00:04.2]} 72... Rf1+ {[%clk 0:00:12.3]} 73. Nf4
{[%clk 0:00:04.8]} 73... Rf2 {[%clk 0:00:12.7]} 74. Ke5 {[%clk 0:00:04.8]} 74...
Rf1 {[%clk 0:00:04.3]} 75. Ng6+ {[%clk 0:00:04.8]} 75... Kg8 {[%clk 0:00:03.9]}
76. Rg7# {[%clk 0:00:04.2]} 1-0

[Event "Early-Titled-Tuesday-Blitz-October-10-2023"]
[Site "Chess.com"]
[Date "2023.10.10"]
[Round "7"]
[White "arenal72"]
[Black "SlavenPastar"]
[Result "0-1"]
[WhiteElo "2408"]
[BlackElo "2558"]
[TimeControl "180+1"]
[EndTime "9:17:33 PDT"]
[Termination "SlavenPastar won by resignation"]

1. Nf3 {[%clk 0:03:00.9]} 1... b6 {[%clk 0:02:59.1]} 2. g3 {[%clk 0:02:57.5]}
2... Bb7 {[%clk 0:02:59.7]} 3. Bg2 {[%clk 0:02:57.9]} 3... Nf6 {[%clk
0:03:00.4]} 4. O-O {[%clk 0:02:57.5]} 4... e6 {[%clk 0:03:01.1]} 5. a4 {[%clk
0:02:55.4]} 5... a5 {[%clk 0:03:00.7]} 6. d4 {[%clk 0:02:53]} 6... g6 {[%clk
0:03:00.9]} 7. c4 {[%clk 0:02:52.4]} 7... Bg7 {[%clk 0:03:01.4]} 8. Nc3 {[%clk
0:02:51.7]} 8... Ne4 {[%clk 0:03:02.1]} 9. Qc2 {[%clk 0:02:49.3]} 9... Nxc3
{[%clk 0:03:02.1]} 10. Qxc3 {[%clk 0:02:48.7]} 10... O-O {[%clk 0:03:02.5]} 11.
Bg5 {[%clk 0:02:47.9]} 11... Qc8 {[%clk 0:03:00.5]} 12. Rad1 {[%clk 0:02:43.1]}
12... c5 {[%clk 0:02:53.1]} 13. e3 {[%clk 0:02:39.3]} 13... Nc6 {[%clk
0:02:50.4]} 14. Qd2 {[%clk 0:02:32.7]} 14... h6 {[%clk 0:02:45.8]} 15. Bf4
{[%clk 0:02:29.3]} 15... Nb4 {[%clk 0:02:39.5]} 16. dxc5 {[%clk 0:02:26.1]}
16... Qxc5 {[%clk 0:02:39]} 17. Bd6 {[%clk 0:02:24.2]} 17... Qxc4 {[%clk
0:02:32.6]} 18. Bxf8 {[%clk 0:02:23.8]} 18... Rxf8 {[%clk 0:02:30.3]} 19. Qxd7
{[%clk 0:02:23.8]} 19... Bc6 {[%clk 0:02:30.7]} 20. Qc7 {[%clk 0:02:19.3]} 20...
Qa2 {[%clk 0:02:19]} 21. Qxb6 {[%clk 0:02:12]} 21... Qxa4 {[%clk 0:01:45.1]} 22.
b3 {[%clk 0:01:54.3]} 22... Qxb3 {[%clk 0:01:41]} 23. Qxa5 {[%clk 0:01:54.1]}
23... Nd5 {[%clk 0:01:17.3]} 24. Nd4 {[%clk 0:01:49.7]} 24... Bxd4 {[%clk
0:01:09.7]} 25. Rxd4 {[%clk 0:01:47.7]} 25... Ne7 {[%clk 0:01:06.8]} 26. Qc5
{[%clk 0:01:40.3]} 26... Bxg2 {[%clk 0:01:03.2]} 27. Kxg2 {[%clk 0:01:41.2]}
27... Nf5 {[%clk 0:00:51.6]} 28. Rb4 {[%clk 0:01:36.1]} 28... Qa2 {[%clk
0:00:51]} 29. Rc1 {[%clk 0:01:31.1]} 29... Rd8 {[%clk 0:00:39.8]} 30. e4 {[%clk
0:01:21.9]} 30... Ng7 {[%clk 0:00:24.7]} 31. Qc2 {[%clk 0:01:15.3]} 31... Qa8
{[%clk 0:00:19.7]} 32. Rd1 {[%clk 0:01:12.5]} 32... Re8 {[%clk 0:00:17]} 33. f3
{[%clk 0:01:08.1]} 33... h5 {[%clk 0:00:12.6]} 34. Rbd4 {[%clk 0:01:06.2]} 34...
h4 {[%clk 0:00:12]} 35. Qc7 {[%clk 0:01:01.6]} 35... e5 {[%clk 0:00:08.1]} 36.
Rd8 {[%clk 0:00:59]} 36... Qa2+ {[%clk 0:00:06.7]} 37. R1d2 {[%clk 0:00:58.9]}
37... Qb1 {[%clk 0:00:07]} 38. Rxe8+ {[%clk 0:00:57.5]} 38... Nxe8 {[%clk
0:00:07.9]} 39. Qc8 {[%clk 0:00:53.9]} 39... h3+ {[%clk 0:00:06]} 40. Kf2 {[%clk
0:00:46.9]} 40... Qb6+ {[%clk 0:00:05.9]} 41. Kf1 {[%clk 0:00:43.7]} 41... Qb1+
{[%clk 0:00:05.3]} 42. Ke2 {[%clk 0:00:41.6]} 42... Qb5+ {[%clk 0:00:05.5]} 43.
Ke3 {[%clk 0:00:30.7]} 43... Qb6+ {[%clk 0:00:05.1]} 44. Kd3 {[%clk 0:00:30.5]}
44... Qb3+ {[%clk 0:00:02.6]} 45. Qc3 {[%clk 0:00:27.8]} 45... Qb1+ {[%clk
0:00:02.9]} 46. Qc2 {[%clk 0:00:26.7]} 46... Qf1+ {[%clk 0:00:03.1]} 47. Kc3
{[%clk 0:00:22.6]} 47... Qxf3+ {[%clk 0:00:02.6]} 48. Kb2 {[%clk 0:00:22.5]}
48... Kg7 {[%clk 0:00:01.5]} 49. Rf2 {[%clk 0:00:18.5]} 49... Qe3 {[%clk
0:00:01.9]} 50. Qd2 {[%clk 0:00:16.4]} 50... Qb6+ {[%clk 0:00:02.5]} 51. Kc1
{[%clk 0:00:15.4]} 51... Nd6 {[%clk 0:00:03.4]} 52. Re2 {[%clk 0:00:11.2]} 52...
Qc6+ {[%clk 0:00:03]} 53. Qc2 {[%clk 0:00:07]} 53... Qb6 {[%clk 0:00:03.5]} 54.
Qc3 {[%clk 0:00:05.1]} 54... Qg1+ {[%clk 0:00:02]} 55. Kd2 {[%clk 0:00:04]}
55... f6 {[%clk 0:00:02.5]} 56. Qc7+ {[%clk 0:00:03.7]} 56... Nf7 {[%clk
0:00:02.9]} 57. Qd7 {[%clk 0:00:02.3]} 57... Qh1 {[%clk 0:00:02.3]} 58. Qd3
{[%clk 0:00:02.4]} 58... Qa1 {[%clk 0:00:02.2]} 59. Rf2 {[%clk 0:00:02.6]} 59...
Qa7 {[%clk 0:00:02.5]} 60. Ke2 {[%clk 0:00:02.4]} 60... Qb7 {[%clk 0:00:02.9]}
61. Qf3 {[%clk 0:00:01.6]} 61... Qe7 {[%clk 0:00:03]} 62. Qe3 {[%clk 0:00:01.5]}
62... Qe6 {[%clk 0:00:03.5]} 63. Qf3 {[%clk 0:00:02]} 63... Qc4+ {[%clk
0:00:03.6]} 64. Ke1 {[%clk 0:00:02.1]} 64... Qe6 {[%clk 0:00:04.5]} 65. Kf1
{[%clk 0:00:02.3]} 65... Ng5 {[%clk 0:00:04.9]} 66. Qe3 {[%clk 0:00:02.3]} 66...
Qc4+ {[%clk 0:00:05.5]} 67. Kg1 {[%clk 0:00:02.7]} 67... Nxe4 {[%clk 0:00:06.4]}
68. Qa7+ {[%clk 0:00:01.9]} 68... Qf7 {[%clk 0:00:06.4]} 69. Qxf7+ {[%clk
0:00:01.6]} 69... Kxf7 {[%clk 0:00:07.3]} 70. Re2 {[%clk 0:00:02.1]} 70... f5
{[%clk 0:00:07.8]} 71. Kf1 {[%clk 0:00:02.1]} 71... Kf6 {[%clk 0:00:08.4]} 72.
Ra2 {[%clk 0:00:02.4]} 72... Kg5 {[%clk 0:00:08.7]} 73. Ra6 {[%clk 0:00:02.6]}
73... Nf6 {[%clk 0:00:09.5]} 74. Kf2 {[%clk 0:00:02.8]} 74... Ng4+ {[%clk
0:00:10.4]} 75. Kg1 {[%clk 0:00:03.1]} 75... e4 {[%clk 0:00:11]} 76. Re6 {[%clk
0:00:02.8]} 76... Ne3 {[%clk 0:00:10.8]} 77. Kf2 {[%clk 0:00:02.5]} 77... Nd5
{[%clk 0:00:11.2]} 78. Re5 {[%clk 0:00:02]} 78... Nb4 {[%clk 0:00:11.4]} 79. Re6
{[%clk 0:00:01.7]} 79... Nd3+ {[%clk 0:00:11.5]} 80. Ke3 {[%clk 0:00:02.1]}
80... Ne1 {[%clk 0:00:11.4]} 81. Kf2 {[%clk 0:00:01.7]} 81... Nf3 {[%clk
0:00:12.3]} 82. Ra6 {[%clk 0:00:01]} 82... Nxh2 {[%clk 0:00:12.3]} 83. Ra1
{[%clk 0:00:01.2]} 83... Ng4+ {[%clk 0:00:13.2]} 84. Kg1 {[%clk 0:00:01.4]}
84... f4 {[%clk 0:00:12.7]} 85. Re1 {[%clk 0:00:01.9]} 85... e3 {[%clk
0:00:12.3]} 86. gxf4+ {[%clk 0:00:02]} 86... Kxf4 {[%clk 0:00:13.2]} 87. Rf1+
{[%clk 0:00:02.4]} 87... Kg3 {[%clk 0:00:13.4]} 88. Rf8 {[%clk 0:00:02.1]} 88...
h2+ {[%clk 0:00:13.5]} 89. Kh1 {[%clk 0:00:02.1]} 89... Nf2+ {[%clk 0:00:13.8]}
90. Rxf2 {[%clk 0:00:02.7]} 90... Kxf2 {[%clk 0:00:14.7]} 91. Kxh2 {[%clk
0:00:03.2]} 91... e2 {[%clk 0:00:15.6]} 0-1

[Event "Early-Titled-Tuesday-Blitz-October-10-2023"]
[Site "Chess.com"]
[Date "2023.10.10"]
[Round "7"]
[White "RobertoJBM"]
[Black "whiteglovethief"]
[Result "1/2-1/2"]
[WhiteElo "2799"]
[BlackElo "2557"]
[TimeControl "180+1"]
[EndTime "9:17:53 PDT"]
[Termination "Game drawn by 50-move rule"]

1. e4 {[%clk 0:03:00.9]} 1... e6 {[%clk 0:02:59.7]} 2. d4 {[%clk 0:03:00.7]}
2... d5 {[%clk 0:03:00.6]} 3. Nd2 {[%clk 0:03:01.3]} 3... c5 {[%clk 0:03:00.6]}
4. exd5 {[%clk 0:03:01.3]} 4... exd5 {[%clk 0:03:01.5]} 5. Ngf3 {[%clk
0:03:01.3]} 5... Nc6 {[%clk 0:02:58.3]} 6. Bb5 {[%clk 0:03:00.1]} 6... Bd6
{[%clk 0:02:57.9]} 7. dxc5 {[%clk 0:02:59.9]} 7... Bxc5 {[%clk 0:02:58.8]} 8.
O-O {[%clk 0:02:59.9]} 8... Ne7 {[%clk 0:02:59.1]} 9. Nb3 {[%clk 0:03:00.5]}
9... Bd6 {[%clk 0:02:59.4]} 10. Be3 {[%clk 0:03:00]} 10... O-O {[%clk
0:02:59.4]} 11. c3 {[%clk 0:02:51.1]} 11... Bg4 {[%clk 0:02:58.7]} 12. h3 {[%clk
0:02:49.5]} 12... Bh5 {[%clk 0:02:58.1]} 13. Be2 {[%clk 0:02:47.2]} 13... Nf5
{[%clk 0:02:56.5]} 14. Bc5 {[%clk 0:02:47.2]} 14... Bxf3 {[%clk 0:02:54.8]} 15.
Bxf3 {[%clk 0:02:45.9]} 15... Nce7 {[%clk 0:02:27.5]} 16. Re1 {[%clk 0:02:42.6]}
16... b6 {[%clk 0:02:25]} 17. Bxd6 {[%clk 0:02:41.7]} 17... Qxd6 {[%clk
0:02:25.6]} 18. Qd3 {[%clk 0:02:36.4]} 18... Rad8 {[%clk 0:02:23.3]} 19. Rad1
{[%clk 0:02:36.6]} 19... g6 {[%clk 0:02:15.4]} 20. g3 {[%clk 0:02:33.4]} 20...
Rfe8 {[%clk 0:02:13]} 21. h4 {[%clk 0:02:32.3]} 21... Nxg3 {[%clk 0:01:52]} 22.
fxg3 {[%clk 0:02:32.2]} 22... Qxg3+ {[%clk 0:01:52.4]} 23. Bg2 {[%clk
0:02:32.8]} 23... Qxh4 {[%clk 0:01:52.2]} 24. Nd4 {[%clk 0:02:31.6]} 24... Nc8
{[%clk 0:01:39.5]} 25. Rxe8+ {[%clk 0:02:15.4]} 25... Rxe8 {[%clk 0:01:40.4]}
26. Nf3 {[%clk 0:02:16.1]} 26... Qg3 {[%clk 0:01:35.5]} 27. Nh2 {[%clk
0:01:23.9]} 27... Re1+ {[%clk 0:01:29.6]} 28. Nf1 {[%clk 0:01:21.2]} 28... Qxd3
{[%clk 0:01:28.8]} 29. Rxd3 {[%clk 0:01:22.1]} 29... Re2 {[%clk 0:01:27.4]} 30.
Rxd5 {[%clk 0:01:16.3]} 30... Ne7 {[%clk 0:01:26.9]} 31. Rd2 {[%clk 0:01:15.5]}
31... Re5 {[%clk 0:01:25.1]} 32. Kf2 {[%clk 0:01:14.5]} 32... h5 {[%clk
0:01:19]} 33. Ne3 {[%clk 0:01:11.3]} 33... g5 {[%clk 0:01:13.3]} 34. Rd7 {[%clk
0:01:05.8]} 34... Kf8 {[%clk 0:01:09.5]} 35. Rxa7 {[%clk 0:01:03.6]} 35... f5
{[%clk 0:01:08.9]} 36. Nc4 {[%clk 0:00:59.7]} 36... Re6 {[%clk 0:01:09.2]} 37.
Rb7 {[%clk 0:00:56]} 37... Nc8 {[%clk 0:00:58.6]} 38. Rb8 {[%clk 0:00:53.2]}
38... Re8 {[%clk 0:00:57.5]} 39. Nxb6 {[%clk 0:00:45]} 39... Nxb6 {[%clk
0:00:56.8]} 40. Rxb6 {[%clk 0:00:45.9]} 40... Kg7 {[%clk 0:00:56.5]} 41. a4
{[%clk 0:00:40.9]} 41... Rd8 {[%clk 0:00:54.1]} 42. Ke2 {[%clk 0:00:39.4]} 42...
Re8+ {[%clk 0:00:50]} 43. Kd3 {[%clk 0:00:38.4]} 43... g4 {[%clk 0:00:50.2]} 44.
a5 {[%clk 0:00:36.7]} 44... f4 {[%clk 0:00:49.5]} 45. Be4 {[%clk 0:00:36.9]}
45... f3 {[%clk 0:00:48.8]} 46. Rg6+ {[%clk 0:00:35.3]} 46... Kf7 {[%clk
0:00:47.7]} 47. Rg5 {[%clk 0:00:35.3]} 47... Rh8 {[%clk 0:00:19.5]} 48. Ke3
{[%clk 0:00:29.8]} 48... Kf6 {[%clk 0:00:19.6]} 49. Rd5 {[%clk 0:00:14.5]} 49...
h4 {[%clk 0:00:16.7]} 50. Bxf3 {[%clk 0:00:10.5]} 50... gxf3 {[%clk 0:00:16.3]}
51. Kxf3 {[%clk 0:00:11.4]} 51... h3 {[%clk 0:00:16.6]} 52. Rd1 {[%clk 0:00:11]}
52... Rb8 {[%clk 0:00:15.1]} 53. Rd2 {[%clk 0:00:10.7]} 53... Ra8 {[%clk
0:00:04.8]} 54. b4 {[%clk 0:00:10.4]} 54... Rc8 {[%clk 0:00:04.7]} 55. Rc2
{[%clk 0:00:10.7]} 55... h2 {[%clk 0:00:04.5]} 56. Rxh2 {[%clk 0:00:09.6]} 56...
Rxc3+ {[%clk 0:00:05.4]} 57. Kg2 {[%clk 0:00:09]} 57... Rb3 {[%clk 0:00:05.4]}
58. Rh4 {[%clk 0:00:09]} 58... Ke5 {[%clk 0:00:05.2]} 59. Kf2 {[%clk 0:00:09]}
59... Kd5 {[%clk 0:00:05.7]} 60. Ke2 {[%clk 0:00:09.5]} 60... Kc6 {[%clk
0:00:06.4]} 61. Kd2 {[%clk 0:00:09.9]} 61... Kb5 {[%clk 0:00:06.8]} 62. Kc2
{[%clk 0:00:10.4]} 62... Rg3 {[%clk 0:00:06.9]} 63. Kb2 {[%clk 0:00:10.5]} 63...
Rf3 {[%clk 0:00:06.8]} 64. Kc2 {[%clk 0:00:10.9]} 64... Rg3 {[%clk 0:00:07.2]}
65. Rd4 {[%clk 0:00:11.5]} 65... Rf3 {[%clk 0:00:07.5]} 66. Rd3 {[%clk
0:00:11.6]} 66... Rf4 {[%clk 0:00:06.2]} 67. Rb3 {[%clk 0:00:11.8]} 67... Rf2+
{[%clk 0:00:06.1]} 68. Kd3 {[%clk 0:00:12.1]} 68... Rf3+ {[%clk 0:00:06.6]} 69.
Kc2 {[%clk 0:00:12.7]} 69... Rf2+ {[%clk 0:00:06.9]} 70. Kc3 {[%clk 0:00:13.3]}
70... Rf3+ {[%clk 0:00:07.2]} 71. Kb2 {[%clk 0:00:13.8]} 71... Rf1 {[%clk
0:00:06.1]} 72. Ka2 {[%clk 0:00:13.9]} 72... Rf2+ {[%clk 0:00:06.2]} 73. Ka3
{[%clk 0:00:14.2]} 73... Rf1 {[%clk 0:00:06.2]} 74. Rb2 {[%clk 0:00:14.6]} 74...
Ra1+ {[%clk 0:00:06.5]} 75. Kb3 {[%clk 0:00:15.2]} 75... Rh1 {[%clk 0:00:06.5]}
76. Kc3 {[%clk 0:00:15.3]} 76... Rh4 {[%clk 0:00:05.7]} 77. Kd3 {[%clk
0:00:15.5]} 77... Rh3+ {[%clk 0:00:05.1]} 78. Kd4 {[%clk 0:00:15.9]} 78... Rh4+
{[%clk 0:00:05.7]} 79. Kd5 {[%clk 0:00:16.4]} 79... Rh5+ {[%clk 0:00:06.3]} 80.
Kd6 {[%clk 0:00:16.8]} 80... Rh6+ {[%clk 0:00:06.8]} 81. Ke5 {[%clk 0:00:17.3]}
81... Rh5+ {[%clk 0:00:06.9]} 82. Ke6 {[%clk 0:00:17.9]} 82... Rh6+ {[%clk
0:00:07.3]} 83. Kd5 {[%clk 0:00:18.5]} 83... Rh5+ {[%clk 0:00:07.6]} 84. Ke4
{[%clk 0:00:19]} 84... Rh4+ {[%clk 0:00:08]} 85. Kd3 {[%clk 0:00:19.5]} 85...
Rh3+ {[%clk 0:00:08.3]} 86. Kc2 {[%clk 0:00:20.1]} 86... Rh2+ {[%clk 0:00:08.6]}
87. Kb1 {[%clk 0:00:20.7]} 87... Rh3 {[%clk 0:00:08.6]} 88. Kc1 {[%clk
0:00:20.1]} 88... Rh1+ {[%clk 0:00:08.5]} 89. Kc2 {[%clk 0:00:20.7]} 89... Rh2+
{[%clk 0:00:09.1]} 90. Kb3 {[%clk 0:00:21.3]} 90... Rh3+ {[%clk 0:00:09.7]} 91.
Ka2 {[%clk 0:00:21.8]} 91... Rh1 {[%clk 0:00:09.9]} 92. Rb3 {[%clk 0:00:20.9]}
92... Rh2+ {[%clk 0:00:09.9]} 93. Ka3 {[%clk 0:00:21.5]} 93... Rh1 {[%clk
0:00:10.5]} 94. Rb2 {[%clk 0:00:22]} 94... Rh3+ {[%clk 0:00:10.6]} 95. Ka2
{[%clk 0:00:21.9]} 95... Rh1 {[%clk 0:00:10.9]} 96. Rb1 {[%clk 0:00:18.7]} 96...
Rh2+ {[%clk 0:00:11.1]} 97. Kb3 {[%clk 0:00:19]} 97... Rh3+ {[%clk 0:00:11.6]}
98. Kc2 {[%clk 0:00:19.1]} 98... Rh2+ {[%clk 0:00:12]} 99. Kc3 {[%clk
0:00:19.4]} 99... Rh3+ {[%clk 0:00:12.3]} 100. Kd2 {[%clk 0:00:19.4]} 100...
Rh2+ {[%clk 0:00:12.6]} 101. Kd3 {[%clk 0:00:20]} 101... Rh3+ {[%clk 0:00:13.1]}
102. Kd4 {[%clk 0:00:20.7]} 102... Rh4+ {[%clk 0:00:13.3]} 103. Ke5 {[%clk
0:00:21.2]} 103... Rh5+ {[%clk 0:00:13.6]} 104. Kd6 {[%clk 0:00:21.8]} 104...
Rh6+ {[%clk 0:00:13.8]} 105. Ke7 {[%clk 0:00:22.5]} 105... Rh7+ {[%clk 0:00:14]}
106. Kf6 {[%clk 0:00:22.9]} 106... Rh6+ {[%clk 0:00:13.7]} 1/2-1/2